Workbook

Sheet Instructions
C3: Estimated Spending-Cliff Impact Report
C4: Please enter the two-letter abbreviation for your state below to view the estimated losses in funding, patients and staff that health centers in your state will experience as a result of a reduction in base and discretionary funding through the federal 330 grant.
C6: Please enter your state or territory's (2-letter abbreviation). To see the impact on the United States and territories as a whole, enter US. | D6: US
C8: Go to the Fact Sheet tab below to view the impact of spending reductions on health centers in the state you entered. Use the slider bars to estimate the funding reduction, and see the impact on funding, patients and staff. Please note that you must click “enable content” at the top of the spreadsheet in order for the calculator to work.
C10: Creating a PDF or printing the Fact Sheet
C11: 1. Go to the Fact Sheet tab (located at the bottom of this workbook).
C12: 2. Make sure everything looks correct and properly formatted (email research@nachc.org if you have any questions.)
C13: 3. Go to File > Save As > PDF (current sheet, not workbook) OR File > Print > PDF. If prompted, choose print page 1.
C14: Notes on the Methodology
C15: This tool first calculates what a reduction in federal 330 funding would amount to for your state. It then divides this funding loss by your health center's current federal 330 funding per patient, and then multiples this amount by the percentage of your health center's total revenue that comes from federal 330 funding in order to account for how "reliant" your health center currently is on its 330 federal funding. This figure is used to estimate the number of patients and FTEs that would be lost as a result.
C16: This tool provides an estimate of the immediate impact of cuts to health center funding. Calculations used for these estimates do not account for impacts that would likely result from the subsequent loss of other revenue sources and decrease in health center services, such as enabling services that faciliate patients' access to care. It also does not account for snowball effects, such as the loss of patients resulting from staff reductions or diminished hours of operation.

Sheet Fact Sheet
H14: 33
H15: 100

Sheet Summary (Linked) (hidden)
A1: Full State Name | B1: State | C1: BPHC Funding | D1: 330 Funding | E1: Total Revenue | F1: Grant/Revenue | G1: BPHC/Patient | H1: BPHC/FTE | I1: Base funding | J1: Discretionary Funding | K1: Total Patients | L1: Patients Immediately Losing Access (Base + Discretionary) | M1: Percent of Current Patients Lost (Projected) | N1: Patients Remaining | O1: Current FTEs | P1: Lost FTEs | AA1: BPHC Funding
A2: Alaska | B2: AK | C2: 90661610 | D2: 72253082 | E2: 259645704 | F2: =D2/E2 -> 0.2782756691 | G2: =D2/K2 -> 628.3587014 | H2: =C2/O2 -> 34528.02258 | I2: =D2*Calculations!$B$68 -> 49829711.72 | J2: =D2-I2 -> 22423370.28 | K2: 114987 | L2: =Calculations!Q2 -> 25032.22516 | M2: =L2/K2 -> 0.2176961322 | N2: =1-M2 -> 0.7823038678 | O2: 2625.74 | P2: =Calculations!Y2 -> 571.6134422 | S2: Following entries are matched to state selection for the purposes of feeding the Fact Sheet from the table. | AA2: 90661610
A3: Alabama | B3: AL | C3: 119973997 | D3: 89208291 | E3: 122281875 | F3: =D3/E3 -> 0.7295299569 | G3: =D3/K3 -> 285.5533394 | H3: =C3/O3 -> 50617.24102 | I3: =D3*Calculations!$B$68 -> 61522959.31 | J3: =D3-I3 -> 27685331.69 | K3: 312405 | L3: =Calculations!Q3 -> 131774.9978 | M3: =L3/K3 -> 0.4218082225 | N3: 0.5781917775 | O3: 2370.22 | P3: =Calculations!Y3 -> 999.7782852 | R3: State as entered from Fact Sheet | S3: =Instructions!D6 -> US | AA3: 119973997
A4: Arkansas | B4: AR | C4: 76087640 | D4: 57870173 | E4: 75755912 | F4: =D4/E4 -> 0.7639030601 | G4: 202.4225326 | H4: 33622.91148 | I4: =D4*Calculations!$B$68 -> 39910464.14 | J4: 17959708.86 | K4: 285888 | L4: =Calculations!Q4 -> 123811.0659 | M4: 0.4330754209 | N4: 0.5669245791 | O4: 2262.97 | P4: =Calculations!Y4 -> 980.0366852 | R4: State | S4: =INDEX(A2:A61,MATCH(S3,B2:B61,0)) -> United States | U4: Selection repeat that feeds Fact Sheet text boxes. | AA4: 76087640
A5: American Samoa | B5: AS | C5: 4088614 | D5: 3878178 | E5: 11816754 | F5: 0.3281931739 | G5: 348.8511289 | H5: 38033.6186 | I5: =D5*Calculations!$B$68 -> 2674605.517 | J5: 1203572.483 | K5: 11117 | L5: =Calculations!Q5 -> 2746.982582 | M5: 0.2470974707 | N5: 0.7529025293 | O5: 107.5 | P5: =Calculations!Y5 -> 26.5629781 | AA5: 4088614
A6: Arizona | B6: AZ | C6: 145580240 | D6: 88262748 | E6: 180298374 | F6: 0.4895371269 | G6: 110.3251252 | H6: 18477.22905 | I6: =D6*Calculations!$B$68 -> 60870860.69 | J6: 27391887.31 | K6: 800024 | L6: =Calculations!Q6 -> 262928.2905 | M6: 0.3286505036 | N6: 0.6713494964 | O6: 7878.9 | P6: =Calculations!Y6 -> 2589.404453 | R6: State Numbers for use in sliders | AA6: 145580240
A7: California | B7: CA | C7: 1135286122 | D7: 704413536 | E7: 2184356804 | F7: 0.322480986 | G7: 134.4407629 | H7: 22271.95387 | I7: =D7*Calculations!$B$68 -> 485802438.6 | J7: 218611097.4 | K7: 5239583 | L7: =Calculations!Q7 -> 1277648.533 | M7: 0.2438454612 | N7: 0.7561545388 | O7: 50973.8 | P7: =Calculations!Y7 -> 12429.72977 | R7: Concatenate | S7: =CONCATENATE(R8,S4,R9) -> in United States' s Federal 330 funding will be lost and | AA7: 1135286122
A8: Colorado | B8: CO | C8: 146194880 | D8: 110662993 | E8: 262914050 | F8: 0.4209093923 | G8: 174.3059186 | H8: 24218.80519 | I8: =D8*Calculations!$B$68 -> 76319305.52 | J8: 34343687.48 | K8: 634878 | L8: =Calculations!Q8 -> 188066.9623 | M8: 0.2962253572 | N8: 0.7037746428 | O8: 6036.42 | P8: =Calculations!Y8 -> 1788.140671 | R8: in | AA8: 146194880
A9: Connecticut | B9: CT | C9: 88985726 | D9: 63058705 | E9: 153218251 | F9: 0.4115613159 | G9: 154.041423 | H9: 19587.0489 | I9: =D9*Calculations!$B$68 -> 43488762.07 | J9: 19569942.93 | K9: 409362 | L9: =Calculations!Q9 -> 119355.4694 | M9: 0.2915646039 | N9: 0.7084353961 | O9: 4543.09 | P9: =Calculations!Y9 -> 1324.604236 | R9: ' s Federal 330 funding will be lost and | AA9: 88985726
A10: District of Columbia | B10: DC | C10: 37367206 | D10: 27070650 | E10: 84338957 | F10: 0.320974446 | G10: 141.7407991 | H10: 16607.86855 | I10: =D10*Calculations!$B$68 -> 18669413.79 | J10: 8401236.207 | K10: 190987 | L10: =Calculations!Q10 -> 46406.61044 | M10: 0.2429830849 | N10: 0.7570169151 | O10: 2249.97 | P10: =Calculations!Y10 -> 546.7046516 | R10: Federal Funding lost (Full cliff) | S10: =S12 -> 3573330454 | AA10: 37367206
A11: Delaware | B11: DE | C11: 14874584 | D11: 13620157 | E11: 18606332 | F11: 0.7320173046 | G11: 292.3282323 | H11: 37492.01996 | I11: =D11*Calculations!$B$68 -> 9393211.724 | J11: 4226945.276 | K11: 46592 | L11: =Calculations!Q11 -> 19691.57593 | M11: =L11/K11 -> 0.422638563 | N11: 0.577361437 | O11: 396.74 | P11: =Calculations!Y11 -> 167.6776235 | AA11: 14874584
A12: Florida | B12: FL | C12: 392616463 | D12: 249107404 | E12: 511688802 | F12: 0.4868338002 | G12: 148.5713798 | H12: 32904.8559 | I12: =D12*Calculations!$B$68 -> 171798209.7 | J12: 77309194.34 | K12: 1676685 | L12: =Calculations!Q12 -> 548996.7542 | M12: 0.3274298715 | N12: 0.6725701285 | O12: 11931.87 | P12: =Calculations!Y12 -> 3906.850661 | R12: Base Funding | S12: =INDEX(I2:I61,MATCH(S3,B2:B61,0)) -> 3573330454 | U12: Selects Base funding from col K | AA12: 392616463
A13: Federated States of Micronesia | B13: FM | C13: 5783400 | D13: 3269239 | E13: 3300181 | F13: 0.9906241506 | G13: 153.5719185 | H13: 43943.46934 | I13: =D13*Calculations!$B$68 -> 2254647.586 | J13: 1014591.414 | K13: 21288 | L13: =Calculations!Q13 -> 10593.86671 | M13: 0.4976449976 | N13: 0.5023550024 | O13: 131.61 | P13: =Calculations!Y13 -> 65.49505813 | R13: Discretionary Funding | S13: =INDEX(J2:J61,MATCH(S3,B2:B61,0)) -> 1607998704 | AA13: 5783400
A14: Georgia | B14: GA | C14: 184086708 | D14: 129186876 | E14: 176604743 | F14: 0.731502868 | G14: 195.0980059 | H14: 46487.24678 | I14: =D14*Calculations!$B$68 -> 89094397.24 | J14: 40092478.76 | K14: 662164 | L14: =Calculations!Q14 -> 279742.4561 | M14: 0.4224670265 | N14: 0.5775329735 | O14: 3959.94 | P14: =Calculations!Y14 -> 1672.944077 | R14: Total BPHC Funding | S14: =INDEX(C2:C61,MATCH(S3,B2:B61,0)) -> 7424904883 | AA14: 184086708
A15: Guam | B15: GU | C15: 2993481 | D15: 1998168 | E15: 3342745 | F15: 0.5977626173 | G15: 249.3969046 | H15: 37935.38208 | I15: =D15*Calculations!$B$68 -> 1378046.897 | J15: 620121.1034 | K15: 8012 | L15: =Calculations!Q15 -> 2997.487886 | M15: 0.3741247985 | N15: 0.6258752015 | O15: 78.91 | P15: =Calculations!Y15 -> 29.52218785 | R15: Total 330 Funding | S15: =INDEX(D2:D61,MATCH(S3,B2:B61,0)) -> 5181329158 | AA15: 2993481
A16: Hawaii | B16: HI | C16: 46604628 | D16: 35199210 | E16: 84343785 | F16: 0.4173302159 | G16: 228.1455627 | H16: 22484.76784 | I16: =D16*Calculations!$B$68 -> 24275317.24 | J16: 10923892.76 | K16: 154284 | L16: =Calculations!Q16 -> 45428.63357 | M16: 0.2944481189 | N16: 0.7055518811 | O16: 2072.72 | P16: =Calculations!Y16 -> 610.3085049 | R16: Total Revenue | S16: =INDEX(E2:E61,MATCH(S3,B2:B61,0)) -> 11261447705 | AA16: 46604628
A17: Iowa | B17: IA | C17: 59133085 | D17: 47580524 | E17: 77746636 | F17: 0.6119946334 | G17: 188.1203356 | H17: 28239.16075 | I17: =D17*Calculations!$B$68 -> 32814154.48 | J17: 14766369.52 | K17: 252926 | L17: =Calculations!Q17 -> 96023.49254 | M17: 0.3796505402 | N17: 0.6203494598 | O17: 2094.01 | P17: =Calculations!Y17 -> 794.9920278 | R17: Patients Served | S17: =INDEX(K2:K61,MATCH(S3,B2:B61,0)) -> 30193278 | AA17: 59133085
A18: Idaho | B18: ID | C18: 72793166 | D18: 48184553 | E18: 116542298 | F18: 0.4134512004 | G18: 237.742953 | H18: 32588.02099 | I18: =D18*Calculations!$B$68 -> 33230726.21 | J18: 14953826.79 | K18: 202675 | L18: =Calculations!Q18 -> 59284.83559 | M18: 0.2925118322 | N18: 0.7074881678 | O18: 2233.74 | P18: =Calculations!Y18 -> 653.3953801 | R18: Patients Lost | S18: =INDEX(L2:L61,MATCH(S3,B2:B61,0)) -> 9886701.913 | AA18: 72793166
A19: Illinois | B19: IL | C19: 301829538 | D19: 221180620 | E19: 426403724 | F19: 0.5187117456 | G19: 152.7347017 | H19: 29618.45565 | I19: =D19*Calculations!$B$68 -> 152538358.6 | J19: 68642261.38 | K19: 1448136 | L19: =Calculations!Q19 -> 494606.7972 | M19: 0.3415472008 | N19: 0.6584527992 | O19: 10190.59 | P19: =Calculations!Y19 -> 3480.567489 | R19: Base funding Patients Lost | S19: =S18*S27 -> 6818415.112 | AA19: 301829538
A20: Indiana | B20: IN | C20: 116637632 | D20: 76183067 | E20: 133954732 | F20: 0.5687224771 | G20: 135.7502976 | H20: 25748.90161 | I20: =D20*Calculations!$B$68 -> 52540046.21 | J20: 23643020.79 | K20: 561200 | L20: =Calculations!Q20 -> 203456.6718 | M20: 0.3625386169 | N20: 0.6374613831 | O20: 4529.81 | P20: =Calculations!Y20 -> 1642.231052 | R20: FTEs | S20: =INDEX(O2:O61,MATCH(S3,B2:B61,0)) -> 271781.14 | AA20: 116637632
A21: Kansas | B21: KS | C21: 71981196 | D21: 49781171 | E21: 102868002 | F21: 0.4839325158 | G21: 172.5876127 | H21: 31421.99678 | I21: =D21*Calculations!$B$68 -> 34331842.07 | J21: 15449328.93 | K21: 288440 | L21: =Calculations!Q21 -> 94064.58405 | M21: 0.3261149079 | N21: 0.6738850921 | O21: 2290.79 | P21: =Calculations!Y21 -> 747.06077 | R21: FTEs Lost | S21: =INDEX(P2:P61,MATCH(S3,B2:B61,0)) -> 85641.71107 | AA21: 71981196
A22: Kentucky | B22: KY | C22: 121782080 | D22: 86681443 | E22: 120742240 | F22: 0.7179048774 | G22: 145.9814394 | H22: 27765.77558 | I22: =D22*Calculations!$B$68 -> 59780305.52 | J22: 26901137.48 | K22: 593784 | L22: =Calculations!Q22 -> 248139.7168 | M22: 0.417895593 | N22: 0.582104407 | O22: 4386.05 | P22: =Calculations!Y22 -> 1832.910965 | AA22: 121782080
A23: Louisiana | B23: LA | C23: 147587503 | D23: 106853304 | E23: 162536291 | F23: 0.6574119745 | G23: 232.0789022 | H23: 37058.72975 | I23: =D23*Calculations!$B$68 -> 73691933.79 | J23: 33161370.21 | K23: 460418 | L23: =Calculations!Q23 -> 182624.6649 | M23: 0.3966497073 | N23: 0.6033502927 | O23: 3982.53 | P23: =Calculations!Y23 -> 1579.669359 | R23: 330/Revenue matched to state | S23: =INDEX(F2:F61,MATCH(S3,B2:B61,0)) -> 0.4600944118 | AA23: 147587503
A24: Massachusetts | B24: MA | C24: 189206346 | D24: 141673183 | E24: 652271058 | F24: 0.2171998608 | G24: 179.6843235 | H24: 18806.31104 | I24: =D24*Calculations!$B$68 -> 97705643.45 | J24: 43967539.55 | K24: 788456 | L24: =Calculations!Q24 -> 140693.849 | M24: 0.1784422327 | N24: 0.8215577673 | O24: 10060.79 | P24: =Calculations!Y24 -> 1795.26983 | R24: 330/Patient matched to state | S24: =INDEX(G2:G61,MATCH(S3,B2:B61,0)) -> 171.6053871 | AA24: 189206346
A25: Maryland | B25: MD | C25: 88268225 | D25: 66733525 | E25: 148150558 | F25: 0.4504439666 | G25: 196.9255069 | H25: 28262.83492 | I25: =D25*Calculations!$B$68 -> 46023120.69 | J25: 20710404.31 | K25: 338877 | L25: =Calculations!Q25 -> 105240.2599 | M25: 0.3105559242 | N25: 0.6894440758 | O25: 3123.12 | P25: =Calculations!Y25 -> 969.9034181 | R25: 330/FTE matched to state | S25: =INDEX(H2:H61,MATCH(S3,B2:B61,0)) -> 27319.42652 | AA25: 88268225
A26: Maine | B26: ME | C26: 63051771 | D26: 46011792 | E26: 79236524 | F26: 0.5806891781 | G26: 234.99023 | H26: 30185.49844 | I26: =D26*Calculations!$B$68 -> 31732270.34 | J26: 14279521.66 | K26: 195803 | L26: =Calculations!Q26 -> 71931.08216 | M26: 0.367364556 | N26: 0.632635444 | O26: 2088.81 | P26: =Calculations!Y26 -> 767.3547583 | AA26: 63051771
A27: Marshall Islands | B27: MH | C27: 1384758 | D27: 631552 | E27: 2284156 | F27: 0.2764924988 | G27: 80.92670425 | H27: 20054.42433 | I27: =D27*Calculations!$B$68 -> 435553.1034 | J27: 195998.8966 | K27: 7804 | L27: =Calculations!Q27 -> 1690.372221 | M27: 0.2166033087 | N27: 0.7833966913 | O27: 69.05 | P27: =Calculations!Y27 -> 14.95645847 | R27: Base funding as a % of 330 | S27: =4/5.8 -> 0.6896551724 | AA27: 1384758
A28: Michigan | B28: MI | C28: 181477785 | D28: 137477828 | E28: 247099645 | F28: 0.556365947 | G28: 209.3955762 | H28: 29261.59602 | I28: =D28*Calculations!$B$68 -> 94812295.17 | J28: 42665532.83 | K28: 656546 | L28: =Calculations!Q28 -> 234700.4814 | M28: 0.3574775894 | N28: 0.6425224106 | O28: 6201.91 | P28: =Calculations!Y28 -> 2217.043837 | AA28: 181477785
A29: Minnesota | B29: MN | C29: 64800453 | D29: 47792604 | E29: 101608470 | F29: 0.4703604335 | G29: 302.402536 | H29: 36056.13868 | I29: =D29*Calculations!$B$68 -> 32960416.55 | J29: 14832187.45 | K29: 158043 | L29: =Calculations!Q29 -> 50557.10988 | M29: 0.3198946481 | N29: 0.6801053519 | O29: 1797.21 | P29: =Calculations!Y29 -> 574.9178606 | AA29: 64800453
A30: Missouri | B30: MO | C30: 179329000 | D30: 123291369 | E30: 190607652 | F30: 0.6468332604 | G30: 199.9519449 | H30: 31991.10174 | I30: =D30*Calculations!$B$68 -> 85028530.34 | J30: 38262838.66 | K30: 616605 | L30: =Calculations!Q30 -> 242186.4023 | M30: 0.3927739838 | N30: 0.6072260162 | O30: 5605.59 | P30: =Calculations!Y30 -> 2201.729916 | T30: PERCENT | AA30: 179329000
A31: Northern Mariana Islands | B31: MP | C31: 2612522 | D31: 2309217 | E31: 2318817 | F31: 0.9958599579 | G31: 944.4650307 | H31: 101615.0136 | I31: =D31*Calculations!$B$68 -> 1592563.448 | J31: 716653.5517 | K31: 2445 | L31: =Calculations!Q31 -> 1219.96415 | M31: 0.4989628425 | N31: 0.5010371575 | O31: 25.71 | P31: =Calculations!Y31 -> 12.82833468 | R31: Base Scroll Bar Value | S31: ='Fact Sheet'!H14 -> 33 | T31: =S31/100 -> 0.33 | AA31: 2612522
A32: Mississippi | B32: MS | C32: 112575641 | D32: 81502126 | E32: 107277533 | F32: 0.759731546 | G32: 261.9905814 | H32: 51271.19083 | I32: =D32*Calculations!$B$68 -> 56208362.76 | J32: 25293763.24 | K32: 311088 | L32: =Calculations!Q32 -> 134306.4899 | M32: 0.4317315034 | N32: 0.5682684966 | O32: 2195.69 | P32: =Calculations!Y32 -> 947.9485448 | R32: Discretionary Scroll | S32: ='Fact Sheet'!H15 -> 100 | T32: =S32/100 -> 1 | AA32: 112575641
A33: Montana | B33: MT | C33: 57334131 | D33: 45615708 | E33: 74505378 | F33: 0.6122471857 | G33: 385.6684563 | H33: 42184.74528 | I33: =D33*Calculations!$B$68 -> 31459108.97 | J33: 14156599.03 | K33: 118277 | L33: =Calculations!Q33 -> 44915.42055 | M33: 0.3797477156 | N33: 0.6202522844 | O33: 1359.12 | P33: =Calculations!Y33 -> 516.1227152 | AA33: 57334131
A34: North Carolina | B34: NC | C34: 194681722 | D34: 146078891 | E34: 255164708 | F34: 0.5724886178 | G34: 202.4464652 | H34: =C34/O34 -> 38108.10289 | I34: =D34*Calculations!$B$68 -> 100744062.8 | J34: 45334828.24 | K34: 721568 | L34: =Calculations!Q34 -> 262697.9059 | M34: 0.3640653492 | N34: =1-M34 -> 0.6359346508 | O34: 5108.67 | P34: =Calculations!Y34 -> 1859.889728 | R34: FUNDING BPIE CHART LINKED | AA34: 194681722
A35: North Dakota | B35: ND | C35: 16195302 | D35: 12475819 | E35: 16372563 | F35: 0.7619954799 | G35: 346.2619761 | H35: 46114.18565 | I35: =D35*Calculations!$B$68 -> 8604013.103 | J35: 3871805.897 | K35: 36030 | L35: =Calculations!Q35 -> 15581.5934 | M35: 0.4324616542 | N35: 0.5675383458 | O35: 351.2 | P35: =Calculations!Y35 -> 151.8805329 | R35: Discretionary funding | S35: =S13 -> 1607998704 | AA35: 16195302
A36: Nebraska | B36: NE | C36: 33808415 | D36: 22449826 | E36: 51387482 | F36: 0.4368734393 | G36: 197.7470404 | H36: 29702.62161 | I36: =D36*Calculations!$B$68 -> 15482638.62 | J36: 6967187.379 | K36: 113528 | L36: =Calculations!Q36 -> 34517.56186 | M36: 0.3040444811 | N36: 0.6959555189 | O36: 1138.23 | P36: =Calculations!Y36 -> 346.0725498 | R36: Remaining Base Funding | S36: =S12-S37 -> 2394131404 | U36: Base loss relative to scroll value above. | AA36: 33808415
A37: New Hampshire | B37: NH | C37: 32171286 | D37: 24431406 | E37: 43756612 | F37: 0.5583477532 | G37: 273.3339226 | H37: 30558.1227 | I37: =D37*Calculations!$B$68 -> 16849245.52 | J37: 7582160.483 | K37: 89383 | L37: =Calculations!Q37 -> 32025.45589 | M37: 0.358294708 | N37: 0.641705292 | O37: 1052.79 | P37: =Calculations!Y37 -> 377.2090857 | R37: Funding Loss | S37: =S12*T31 -> 1179199050 | U37: Discretionary loss relative to scroll value above. | AA37: 32171286
A38: New Jersey | B38: NJ | C38: 134056042 | D38: 88747962 | E38: 176457222 | F38: 0.5029432119 | G38: 155.932899 | H38: 39897.75029 | I38: =D38*Calculations!$B$68 -> 61205491.03 | J38: 27542470.97 | K38: 569142 | L38: =Calculations!Q38 -> 190457.0334 | M38: 0.3346388659 | N38: 0.6653611341 | O38: 3359.99 | P38: =Calculations!Y38 -> 1124.383243 | R38: Total Check | S38: =S12+S13 -> 5181329158 | T38: =SUM(S35:S37) -> 5181329158 | AA38: 134056042
A39: New Mexico | B39: NM | C39: 98694854 | D39: 76826217 | E39: 152637318 | F39: 0.503325255 | G39: 243.1301727 | H39: 29234.51749 | I39: =D39*Calculations!$B$68 -> 52983597.93 | J39: 23842619.07 | K39: 315988 | L39: =Calculations!Q39 -> 105795.2962 | M39: 0.3348079554 | N39: 0.6651920446 | O39: 3375.97 | P39: =Calculations!Y39 -> 1130.301613 | AA39: 98694854
A40: Nevada | B40: NV | C40: 37027890 | D40: 26611641 | E40: 52405486 | F40: 0.5078025801 | G40: 237.7206753 | H40: 33200.83029 | I40: =D40*Calculations!$B$68 -> 18352855.86 | J40: 8258785.138 | K40: 111945 | L40: =Calculations!Q40 -> 37701.19549 | M40: 0.3367832014 | N40: 0.6632167986 | O40: 1115.27 | P40: =Calculations!Y40 -> 375.6042011 | R40: PATIENTS -BARE CHART LINKED | AA40: 37027890
A41: New York | B41: NY | C41: 404610742 | D41: 273389168 | E41: 836909567 | F41: 0.3266651246 | G41: 122.7628428 | H41: 20496.38547 | I41: =D41*Calculations!$B$68 -> 188544253.8 | J41: 84844914.21 | K41: 2226970 | L41: =Calculations!Q41 -> 548347.4458 | M41: 0.2462302796 | N41: 0.7537697204 | O41: 19740.59 | P41: =Calculations!Y41 -> 4860.730996 | R41: Total Patients Lost + Remaining below | AA41: 404610742
A42: Ohio | B42: OH | C42: 236888423 | D42: 165354161 | E42: 274154523 | F42: 0.6031421958 | G42: 194.5272125 | H42: 33008.86127 | I42: =D42*Calculations!$B$68 -> 114037352.4 | J42: 51316808.59 | K42: 850031 | L42: =Calculations!Q42 -> 319802.9253 | M42: 0.3762250145 | N42: 0.6237749855 | O42: 7176.51 | P42: =Calculations!Y42 -> 2699.982579 | AA42: 236888423
A43: Oklahoma | B43: OK | C43: 94022266 | D43: 66058319 | E43: 92662042 | F43: 0.7128951356 | G43: 212.1973846 | H43: 38433.22215 | I43: =D43*Calculations!$B$68 -> 45557461.38 | J43: 20500857.62 | K43: 311306 | L43: =Calculations!Q43 -> 129563.409 | M43: 0.4161930995 | N43: 0.5838069005 | O43: 2446.38 | P43: =Calculations!Y43 -> 1018.166475 | R43: Patients Remaining | S43: =S17-S44 -> 27943201.01 | AA43: 94022266
A44: Oregon | B44: OR | C44: 130321162 | D44: 99496629 | E44: 232537180 | F44: 0.4278740673 | G44: 264.2567467 | H44: 22737.54733 | I44: =D44*Calculations!$B$68 -> 68618364.83 | J44: 30878264.17 | K44: 376515 | L44: =Calculations!Q44 -> 112825.7793 | M44: 0.2996581261 | N44: 0.7003418739 | O44: 5731.54 | P44: =Calculations!Y44 -> 1717.502536 | R44: Patients Lost | S44: =(S18*S27)*T31 -> 2250076.987 | AA44: 130321162
A45: Pennsylvania | B45: PA | C45: 196386466 | D45: 141039594 | E45: 233130108 | F45: 0.6049823217 | G45: 171.217334 | H45: 30623.13422 | I45: =D45*Calculations!$B$68 -> 97268685.52 | J45: 43770908.48 | K45: 823746 | L45: =Calculations!Q45 -> 310502.9637 | M45: 0.3769401778 | N45: 0.6230598222 | O45: 6413.01 | P45: =Calculations!Y45 -> 2417.32113 | R45: Total Check | S45: =S17 -> 30193278 | T45: =SUM(S44:S44) -> 2250076.987 | AA45: 196386466
A46: Puerto Rico | B46: PR | C46: 129865437 | D46: 95470007 | E46: 121743939 | F46: 0.7841869401 | G46: 231.039732 | H46: 28569.54477 | I46: =D46*Calculations!$B$68 -> 65841384.14 | J46: 29628622.86 | K46: 413219 | L46: =Calculations!Q46 -> 181618.2688 | M46: 0.4395206144 | N46: 0.5604793856 | O46: 4545.59 | P46: =Calculations!Y46 -> 1997.88051 | AA46: 129865437
A47: Palau | B47: PW | C47: 1871002 | D47: 704526 | E47: 704526 | F47: 1 | G47: 48.33465971 | H47: 15594.28238 | I47: =D47*Calculations!$B$68 -> 485880 | J47: 218646 | K47: 14576 | L47: =Calculations!Q47 -> 7288 | M47: 0.5 | N47: 0.5 | O47: 119.98 | P47: =Calculations!Y47 -> 59.99 | R47: FTE BAR CHART LINKED (Discretionary first for barchart order) | AA47: 1871002
A48: Rhode Island | B48: RI | C48: 39684147 | D48: 31558829 | E48: 66397176 | F48: 0.475303784 | G48: 166.5408716 | H48: 19659.43733 | I48: =D48*Calculations!$B$68 -> 21764709.66 | J48: 9794119.345 | K48: 189496 | L48: =Calculations!Q48 -> 61050.5896 | M48: 0.3221735002 | N48: 0.6778264998 | O48: 2018.58 | P48: =Calculations!Y48 -> 650.3329841 | R48: FTEs Remaining | S48: =S20-S49 -> 252290.2678 | AA48: 39684147
A49: South Carolina | B49: SC | C49: 125978603 | D49: 94599292 | E49: 173305225 | F49: 0.5458536637 | G49: 216.5581014 | H49: 28842.90607 | I49: =D49*Calculations!$B$68 -> 65240891.03 | J49: 29358400.97 | K49: 436831 | L49: =Calculations!Q49 -> 154248.6248 | M49: 0.3531082382 | N49: 0.6468917618 | O49: 4367.75 | P49: =Calculations!Y49 -> 1542.288507 | R49: FTEs Lost | S49: =S21*S27*T31 -> 19490.87217 | AA49: 125978603
A50: South Dakota | B50: SD | C50: 24877040 | D50: 20866363 | E50: 28439997 | F50: 0.7336977919 | G50: 207.2296012 | H50: 32109.34999 | I50: =D50*Calculations!$B$68 -> 14390595.17 | J50: 6475767.828 | K50: 100692 | L50: =Calculations!Q50 -> 42612.67356 | M50: 0.423198204 | N50: 0.576801796 | O50: 774.76 | P50: =Calculations!Y50 -> 327.8770406 | S50: =SUM(S48:S49) -> 271781.14 | AA50: 24877040
A51: Tennessee | B51: TN | C51: 128687566 | D51: 91350958 | E51: 139447159 | F51: 0.655093719 | G51: 208.9798823 | H51: 39101.68819 | I51: =D51*Calculations!$B$68 -> 63000660.69 | J51: 28350297.31 | K51: 437128 | L51: =Calculations!Q51 -> 173017.2763 | M51: 0.395804607 | N51: 0.604195393 | O51: 3291.1 | P51: =Calculations!Y51 -> 1302.632542 | R51: Total Check | S51: =S20 -> 271781.14 | AA51: 128687566
A52: Texas | B52: TX | C52: 407615395 | D52: 284671241 | E52: 562394227 | F52: 0.5061773883 | G52: 163.9901982 | H52: 28465.4182 | I52: =D52*Calculations!$B$68 -> 196324993.8 | J52: 88346247.21 | K52: 1735904 | L52: =Calculations!Q52 -> 583381.0545 | M52: 0.3360675789 | N52: 0.6639324211 | O52: 14319.67 | P52: =Calculations!Y52 -> 4812.376828 | AA52: 407615395
A53: Utah | B53: UT | C53: 58226122 | D53: 42064266 | E53: 80935750 | F53: 0.5197241763 | G53: 257.1951452 | H53: 40361.37167 | I53: =D53*Calculations!$B$68 -> 29009838.62 | J53: 13054427.38 | K53: 163550 | L53: =Calculations!Q53 -> 55931.78707 | M53: 0.341985858 | N53: 0.658014142 | O53: 1442.62 | P53: =Calculations!Y53 -> 493.3556384 | R53: FTEs Lost | S53: =S26*S32*T36 -> 0 | AA53: 58226122
A54: Virginia | B54: VA | C54: 128118038 | D54: 93409211 | E54: 138814624 | F54: 0.672906127 | G54: 247.2929153 | H54: 35811.96974 | I54: =D54*Calculations!$B$68 -> 64420145.52 | J54: 28989065.48 | K54: 377727 | L54: =Calculations!Q54 -> 151936.0881 | M54: 0.402237828 | N54: 0.597762172 | O54: 3577.52 | P54: =Calculations!Y54 -> 1439.013874 | R54: FTEs Remaining | AA54: 128118038
A55: Virgin Islands | B55: VI | C55: 5759509 | D55: 3271826 | E55: 9724618 | F55: 0.3364477659 | G55: 205.3876962 | H55: 25104.65086 | I55: =D55*Calculations!$B$68 -> 2256431.724 | J55: 1015394.276 | K55: 15930 | L55: =Calculations!Q55 -> 4010.342227 | M55: 0.2517477858 | N55: 0.7482522142 | O55: 229.42 | P55: =Calculations!Y55 -> 57.75597701 | AA55: 5759509
A56: Vermont | B56: VT | C56: 39313153 | D56: 25404664 | E56: 55297688 | F56: 0.4594163865 | G56: 137.5589608 | H56: 24359.85562 | I56: =D56*Calculations!$B$68 -> 17520457.93 | J56: 7884206.069 | K56: 184682 | L56: =Calculations!Q56 -> 58136.89491 | M56: 0.3147945924 | N56: 0.6852054076 | O56: 1613.85 | P56: =Calculations!Y56 -> 508.0312529 | AA56: 39313153
A57: Washington | B57: WA | C57: 198895019 | D57: 138602346 | E57: 325897930 | F57: 0.4252937292 | G57: 115.9383663 | H57: 16986.82689 | I57: =D57*Calculations!$B$68 -> 95587824.83 | J57: 43014521.17 | K57: 1195483 | L57: =Calculations!Q57 -> 356720.452 | M57: 0.2983902339 | N57: 0.7016097661 | O57: 11708.78 | P57: =Calculations!Y57 -> 3493.785603 | AA57: 198895019
A58: Wisconsin | B58: WI | C58: 82528579 | D58: 49105300 | E58: 112134778 | F58: 0.4379132048 | G58: 179.7241112 | H58: 31248.63368 | I58: =D58*Calculations!$B$68 -> 33865724.14 | J58: 15239575.86 | K58: 273226 | L58: =Calculations!Q58 -> 83210.35852 | M58: 0.3045477316 | N58: 0.6954522684 | O58: 2641.03 | P58: =Calculations!Y58 -> 804.3196956 | AA58: 82528579
A59: West Virginia | B59: WV | C59: 108622260 | D59: 80104446 | E59: 130865789 | F59: 0.6121114358 | G59: 158.8860071 | H59: 27441.57481 | I59: =D59*Calculations!$B$68 -> 55244445.52 | J59: 24860000.48 | K59: 504163 | L59: =Calculations!Q59 -> 191428.4155 | M59: 0.3796954864 | N59: 0.6203045136 | O59: 3958.31 | P59: =Calculations!Y59 -> 1502.952441 | AA59: 108622260
A60: Wyoming | B60: WY | C60: 13028312 | D60: 8643254 | E60: 19102485 | F60: 0.4524675193 | G60: 248.7983305 | H60: =C60/O60 -> 42422.2982 | I60: =D60*Calculations!$B$68 -> 5960864.828 | J60: 2682389.172 | K60: 34740 | L60: =Calculations!Q59 -> 191428.4155 | M60: =L60/K60 -> 5.510317085 | N60: =1-M60 -> -4.510317085 | O60: 307.11 | P60: =Calculations!Y60 -> 95.66981568 | AA60: 13028312
A61: United States | B61: US | C61: =SUM(C1:C60) -> 7424904883 | D61: =SUM(D1:D60) -> 5181329158 | E61: =SUM(E1:E60) -> 11261447705 | F61: 0.4600944118 | G61: =D61/K61 -> 171.6053871 | H61: 27319.42652 | I61: =D61*Calculations!$B$68 -> 3573330454 | J61: 1607998704 | K61: =SUM(K1:K60) -> 30193278 | L61: =SUM(L2:L60) -> 9886701.913 | M61: 0.3274471196 | N61: 0.6725528804 | O61: =SUM(O1:O60) -> 271781.14 | P61: =Calculations!Y61 -> 85641.71107 | AA61: =SUM(AA1:AA60) -> 7424904883
B63: Total | C63: =SUM(C2:C60) -> 7424904883 | E63: =SUM(E2:E60) -> 11261447705 | I63: =SUM(I2:I60) -> 3573330454 | J63: =SUM(J2:J60) -> 1607998704 | K63: 30193278 | L63: =SUM(L2:L60) -> 9886701.913 | O63: =SUM(O2:O60) -> 271781.14 | P63: =SUM(P2:P60) -> 85625.58338 | AA63: =SUM(AA2:AA60) -> 7424904883
L64: =SUM(L2:L60) -> 9886701.913
I65: Total Check | J65: =SUM(I63:J63) -> 5181329158 | L65: =L64-L63 -> 0
D66: =1.74/5.64 -> 0.3085106383 | J66: From PPT: 4.0+1.7=5.7B | L66: 4240217.697
D67: =1-D66 -> 0.6914893617
D68: =D67*D61 -> 3582833992

Sheet Calculations (hidden)
A1: Full State Name | B1: State | C1: BPHC Funding | D1: 330 Funding | E1: Total Third Party Revenue (SB Patient Revenue Line 14 | F1: All other Revenue Line 11 MINUS COVID | G1: Total Revenue E+F | H1: Total Funding (Grant + Revenue) | I1: Grant/Revenue | J1: Grant/TOTAL | K1: Base Funding | L1: Discretionary Funding | M1: DEDICATED EXPENDITURES ON PATIENTS | N1: Total Patients | O1: Expenditure per patient | P1: Percent of budget to patients | Q1: Patients Immediately Losing Access (Base AND Discretionary) | R1: % losing access | S1: Grant Dollars per Patient | T1: Total Revenue per Patient | U1: Total Payroll Expenditure | V1: Total Staff | W1: Payroll per FTE | X1: Payroll as a Percent of Total Revenue | Y1: Lost Staff | AE1: 330/Expense per patient | AH1: lost ftes | AI1: patients per fte | AJ1: revenue -cost per patient | AK1: =lost revenue | AL1: divided by cost per fte | AM1: times operaiting cost | AN1: divided by cost per patient
A2: Alaska | B2: AK | C2: 90661610 | D2: 72253082 | E2: 203966933 | F2: 259645704 | G2: =E2+F2 -> 463612637 | H2: =F2+D2 -> 331898786 | I2: =D2/G2 -> 0.1558479563 | J2: =D2/H2 -> 0.2176961322 | K2: =D2*$B$68 -> 49829711.72 | L2: =D2-(D2*$B$68) -> 22423370.28 | M2: 204035120 | N2: 114987 | O2: =M2/N2 -> 1774.419021 | P2: =M2/H2 -> 0.6147510283 | Q2: =(D2/O2)*P2 -> 25032.22516 | R2: =Q2/N2 -> 0.2176961322 | S2: =D2/N2 -> 628.3587014 | T2: =G2/N2 -> 4031.870011 | U2: 163042391 | V2: 2625.74 | W2: =U2/V2 -> 62093.88249 | X2: =U2/H2 -> 0.4912412997 | Y2: =(D2/W2)*X2 -> 571.6134422 | AB2: grant funding/cost per pat/funding ratio | AE2: =D2/O2 -> 40719.2896 | AF2: =(D2/O2)*P2 -> 25032.22516
A3: Alabama | B3: AL | C3: 119973997 | D3: 89208291 | E3: 144072531 | F3: 122281875 | G3: 296352631 | H3: =F3+D3 -> 211490166 | I3: =D3/G3 -> 0.3010207492 | J3: =D3/H3 -> 0.4218082225 | K3: =D3*$B$68 -> 61522959.31 | L3: =D3-(D3*$B$68) -> 27685331.69 | M3: 179879413 | N3: 312405 | O3: =M3/N3 -> 575.7891615 | P3: =M3/H3 -> 0.8505332253 | Q3: 131774.9978 | R3: 0.4218082225 | S3: 285.5533394 | T3: 948.6167987 | U3: 146616081 | V3: 2370.22 | W3: =U3/V3 -> 61857.58326 | X3: =U3/H3 -> 0.6932524749 | Y3: 999.7782852
A4: Arkansas | B4: AR | C4: 76087640 | D4: 57870173 | E4: 181978298 | F4: 75755912 | G4: 275018934 | H4: 133626085 | I4: 0.2104225049 | J4: 0.4330754209 | K4: 39910464.14 | L4: 17959708.86 | M4: 173830701 | N4: 285888 | O4: 608.0377665 | P4: =M4/H4 -> 1.30087401 | Q4: 123811.0659 | R4: 0.4330754209 | S4: 202.4225326 | T4: 961.9813843 | U4: 145062893 | V4: 2262.97 | W4: 64102.8794 | X4: 1.085588139 | Y4: 980.0366852
A5: American Samoa | B5: AS | C5: 4088614 | D5: 3878178 | E5: 7242057 | F5: 11816754 | G5: 19269247 | H5: 15694932 | I5: 0.201262561 | J5: 0.2470974707 | K5: 2674605.517 | L5: 1203572.483 | M5: 4470186 | N5: 11117 | O5: 402.1036251 | P5: 0.2848171626 | Q5: 2746.982582 | R5: 0.2470974707 | S5: 348.8511289 | T5: 1733.313574 | U5: 2859296 | V5: 107.5 | W5: 26598.10233 | X5: 0.1821795724 | Y5: 26.5629781
A6: Arizona | B6: AZ | C6: 145580240 | D6: 88262748 | E6: 732224162 | F6: 180298374 | G6: 969577255 | H6: 268561122 | I6: 0.09103219733 | J6: 0.3286505036 | K6: 60870860.69 | L6: 27391887.31 | M6: 519688120 | N6: 800024 | O6: 649.5906623 | P6: 1.935083217 | Q6: 262928.2905 | R6: 0.3286505036 | S6: 110.3251252 | T6: 1211.935211 | U6: 444308318 | V6: 7878.9 | W6: 56392.17632 | X6: 1.654402971 | Y6: 2589.404453
A7: California | B7: CA | C7: 1135286122 | D7: 704413536 | E7: 5726129837 | F7: 2184356804 | G7: 8329737476 | H7: 2888770340 | I7: 0.08456611484 | J7: 0.2438454612 | K7: 485802438.6 | L7: 218611097.4 | M7: 4259252119 | N7: 5239583 | O7: 812.8990645 | P7: 1.474417007 | Q7: 1277648.533 | R7: 0.2438454612 | S7: 134.4407629 | T7: 1589.771071 | U7: 3526056894 | V7: 50973.8 | W7: 69173.90687 | X7: 1.220608245 | Y7: 12429.72977
A8: Colorado | B8: CO | C8: 146194880 | D8: 110662993 | E8: 466704315 | F8: 262914050 | G8: 765150252 | H8: 373577043 | I8: 0.1446291009 | J8: 0.2962253572 | K8: 76319305.52 | L8: 34343687.48 | M8: 409734599 | N8: 634878 | O8: 645.3753304 | P8: 1.096787414 | Q8: 188066.9623 | R8: 0.2962253572 | S8: 174.3059186 | T8: 1205.192576 | U8: 356183067 | V8: 6036.42 | W8: 59005.68002 | X8: 0.9534393873 | Y8: =(D8/W8)*X8 -> 1788.140671
A9: Connecticut | B9: CT | C9: 88985726 | D9: 63058705 | E9: 432691841 | F9: 153218251 | G9: 611435065 | H9: 216276956 | I9: 0.1031323007 | J9: 0.2915646039 | K9: 43488762.07 | L9: 19569942.93 | M9: 266795724 | N9: 409362 | O9: 651.735442 | P9: 1.233583683 | Q9: 119355.4694 | R9: 0.2915646039 | S9: 154.041423 | T9: 1493.629269 | U9: 251701547 | V9: 4543.09 | W9: 55403.16106 | X9: 1.16379272 | Y9: 1324.604236
A10: District of Columbia | B10: DC | C10: 37367206 | D10: 27070650 | E10: 281051364 | F10: 84338957 | G10: 375137674 | H10: 111409607 | I10: 0.07216190715 | J10: 0.2429830849 | K10: 18669413.79 | L10: 8401236.207 | M10: 161584462 | N10: 190987 | O10: 846.0495322 | P10: 1.450363809 | Q10: 46406.61044 | R10: 0.2429830849 | S10: 141.7407991 | T10: 1964.205281 | U10: 133367744 | V10: 2249.97 | W10: 59275.34323 | X10: =U10/H10 -> 1.197093748 | Y10: 546.7046516
A11: Delaware | B11: DE | C11: 14874584 | D11: 13620157 | E11: 26957257 | F11: 18606332 | G11: 46818016 | H11: 32226489 | I11: 0.2909170051 | J11: 0.422638563 | K11: 9393211.724 | L11: 4226945.276 | M11: 17371151 | N11: 46592 | O11: 372.8354868 | P11: 0.5390333089 | Q11: 19691.57593 | R11: 0.422638563 | S11: 292.3282323 | T11: 1004.850962 | U11: 22958304 | V11: 396.74 | W11: 57867.37914 | X11: 0.712404755 | Y11: 167.6776235
A12: Florida | B12: FL | C12: 392616463 | D12: 249107404 | E12: 1009700019 | F12: 511688802 | G12: 1660472003 | H12: 760796206 | I12: 0.1500220441 | J12: 0.3274298715 | K12: 171798209.7 | L12: 77309194.34 | M12: 722823685 | N12: 1676685 | O12: 431.1028518 | P12: 0.9500884459 | Q12: 548996.7542 | R12: 0.3274298715 | S12: 148.5713798 | T12: 990.3303262 | U12: 609263067 | V12: 11931.87 | W12: 51061.82577 | X12: 0.8008229565 | Y12: 3906.850661
A13: Federated States of Micronesia | B13: FM | C13: 5783400 | D13: 3269239 | E13: 129515 | F13: 3300181 | G13: 5943857 | H13: 6569420 | I13: 0.5500197935 | J13: 0.4976449976 | K13: 2254647.586 | L13: 1014591.414 | M13: 3823010 | N13: 21288 | O13: 179.5852123 | P13: 0.5819402626 | Q13: 10593.86671 | R13: 0.4976449976 | S13: 153.5719185 | T13: 279.2116216 | U13: 2399753 | V13: 131.61 | W13: 18233.81962 | X13: 0.3652914565 | Y13: 65.49505813
A14: Georgia | B14: GA | C14: 184086708 | D14: 129186876 | E14: 343973249 | F14: 176604743 | G14: 574203343 | H14: 305791619 | I14: 0.2249845418 | J14: 0.4224670265 | K14: 89094397.24 | L14: 40092478.76 | M14: 295437009 | N14: 662164 | O14: 446.1689385 | P14: 0.966138346 | Q14: 279742.4561 | R14: 0.4224670265 | S14: 195.0980059 | T14: 867.1618255 | U14: 240497023 | V14: 3959.94 | W14: 60732.49165 | X14: 0.7864735593 | Y14: 1672.944077
A15: Guam | B15: GU | C15: 2993481 | D15: 1998168 | E15: 2610419 | F15: 3342745 | G15: 6948477 | H15: 5340913 | I15: 0.287569204 | J15: 0.3741247985 | K15: 1378046.897 | L15: 620121.1034 | M15: 5115627 | N15: 8012 | O15: 638.4956316 | P15: 0.9578188224 | Q15: 2997.487886 | R15: 0.3741247985 | S15: 249.3969046 | T15: 867.2587369 | U15: 4252897 | V15: 78.91 | W15: 53895.53922 | X15: 0.7962865151 | Y15: 29.52218785
A16: Hawaii | B16: HI | C16: 46604628 | D16: 35199210 | E16: 173948430 | F16: 84343785 | G16: 268928685 | H16: 119542995 | I16: 0.1308867814 | J16: 0.2944481189 | K16: 24275317.24 | L16: 10923892.76 | M16: 129434518 | N16: 154284 | O16: 838.936753 | P16: 1.08274448 | Q16: 45428.63357 | R16: 0.2944481189 | S16: 228.1455627 | T16: 1743.075659 | U16: 105904374 | V16: 2072.72 | W16: 51094.3948 | X16: 0.8859103287 | Y16: 610.3085049
A17: Iowa | B17: IA | C17: 59133085 | D17: 47580524 | E17: 175109088 | F17: 77746636 | G17: 263382737 | H17: 125327160 | I17: 0.1806516423 | J17: 0.3796505402 | K17: 32814154.48 | L17: 14766369.52 | M17: 122945926 | N17: 252926 | O17: 486.0944545 | P17: 0.9809998567 | Q17: 96023.49254 | R17: 0.3796505402 | S17: 188.1203356 | T17: 1041.343069 | U17: 102199800 | V17: 2094.01 | W17: 48805.78412 | X17: 0.8154641021 | Y17: 794.9920278
A18: Idaho | B18: ID | C18: 72793166 | D18: 48184553 | E18: 211822502 | F18: 116542298 | G18: 352941903 | H18: 164726851 | I18: 0.1365226191 | J18: 0.2925118322 | K18: 33230726.21 | L18: 14953826.79 | M18: 152138350 | N18: 202675 | O18: 750.6517824 | P18: 0.9235795444 | Q18: 59284.83559 | R18: 0.2925118322 | S18: 237.742953 | T18: 1741.418049 | U18: 121555704 | V18: 2233.74 | W18: 54418.01821 | X18: 0.7379228296 | Y18: 653.3953801
A19: Illinois | B19: IL | C19: 301829538 | D19: 221180620 | E19: 947540224 | F19: 426403724 | G19: 1454492866 | H19: 647584344 | I19: 0.1520671742 | J19: 0.3415472008 | K19: 152538358.6 | L19: 68642261.38 | M19: 802226921 | N19: 1448136 | O19: 553.9720862 | P19: 1.238799129 | Q19: 494606.7972 | R19: 0.3415472008 | S19: 152.7347017 | T19: 1004.389689 | U19: 674307190 | V19: 10190.59 | W19: 66169.59273 | X19: =U19/H19 -> 1.041265429 | Y19: 3480.567489
A20: Indiana | B20: IN | C20: 116637632 | D20: 76183067 | E20: 383440979 | F20: 133954732 | G20: 557556276 | H20: 210137799 | I20: 0.1366374486 | J20: 0.3625386169 | K20: 52540046.21 | L20: 23643020.79 | M20: 323804634 | N20: 561200 | O20: 576.9861618 | P20: 1.540915702 | Q20: 203456.6718 | R20: 0.3625386169 | S20: 135.7502976 | T20: 993.507263 | U20: 271389119 | V20: 4529.81 | W20: 59911.81065 | X20: 1.291481686 | Y20: 1642.231052
A21: Kansas | B21: KS | C21: 71981196 | D21: 49781171 | E21: 177284938 | F21: 102868002 | G21: 301818144 | H21: 152649173 | I21: 0.1649376354 | J21: 0.3261149079 | K21: 34331842.07 | L21: 15449328.93 | M21: 131599618 | N21: 288440 | O21: 456.2460754 | P21: 0.8621050178 | Q21: 94064.58405 | R21: 0.3261149079 | S21: 172.5876127 | T21: 1046.381029 | U21: 106810171 | V21: 2290.79 | W21: 46625.91115 | X21: 0.699710119 | Y21: 747.06077
A22: Kentucky | B22: KY | C22: 121782080 | D22: 86681443 | E22: 436565564 | F22: 120742240 | G22: 591672168 | H22: 207423683 | I22: 0.1465024851 | J22: 0.417895593 | K22: 59780305.52 | L22: 26901137.48 | M22: 317799563 | N22: 593784 | O22: 535.2107214 | P22: 1.532127665 | Q22: 248139.7168 | R22: 0.417895593 | S22: 145.9814394 | T22: 996.443434 | U22: 278735437 | V22: 4386.05 | W22: 63550.44676 | X22: 1.34379755 | Y22: 1832.910965
A23: Louisiana | B23: LA | C23: 147587503 | D23: 106853304 | E23: 334991463 | F23: 162536291 | G23: 537436395 | H23: 269389595 | I23: 0.198820372 | J23: 0.3966497073 | K23: 73691933.79 | L23: 33161370.21 | M23: 217462824 | N23: 460418 | O23: 472.316078 | P23: 0.8072428484 | Q23: 182624.6649 | R23: 0.3966497073 | S23: 232.0789022 | T23: 1167.279288 | U23: 196849191 | V23: 3982.53 | W23: 49428.17531 | X23: 0.7307230667 | Y23: 1579.669359
A24: Massachusetts | B24: MA | C24: 189206346 | D24: 141673183 | E24: 756638957 | F24: 652271058 | G24: 1455380379 | H24: 793944241 | I24: 0.09734443658 | J24: 0.1784422327 | K24: 97705643.45 | L24: 43967539.55 | M24: 567771381 | N24: 788456 | O24: 720.1053464 | P24: 0.7151275262 | Q24: 140693.849 | R24: 0.1784422327 | S24: 179.6843235 | T24: 1845.861252 | U24: 531004370 | V24: 10060.79 | W24: 52779.58987 | X24: 0.6688182149 | Y24: 1795.26983
A25: Maryland | B25: MD | C25: 88268225 | D25: 66733525 | E25: 339703492 | F25: 148150558 | G25: 509356435 | H25: 214884083 | I25: 0.1310153763 | J25: 0.3105559242 | K25: 46023120.69 | L25: 20710404.31 | M25: 214331433 | N25: 338877 | O25: 632.4755973 | P25: 0.9974281483 | Q25: 105240.2599 | R25: 0.3105559242 | S25: 196.9255069 | T25: 1503.071719 | U25: 202340050 | V25: 3123.12 | W25: 64787.79234 | X25: 0.9416241872 | Y25: 969.9034181
A26: Maine | B26: ME | C26: 63051771 | D26: 46011792 | E26: 166678390 | F26: 79236524 | G26: 262907215 | H26: 125248316 | I26: 0.1750115226 | J26: 0.367364556 | K26: 31732270.34 | L26: 14279521.66 | M26: 139633680 | N26: 195803 | O26: 713.1335066 | P26: 1.11485475 | Q26: 71931.08216 | R26: 0.367364556 | S26: 234.99023 | T26: 1342.712905 | U26: 119330207 | V26: 2088.81 | W26: 57128.32043 | X26: 0.9527489934 | Y26: 767.3547583
A27: Marshall Islands | B27: MH | C27: 1384758 | D27: 631552 | E27: 30836 | F27: 2284156 | G27: 3068198 | H27: 2915708 | I27: 0.2058380848 | J27: 0.2166033087 | K27: 435553.1034 | L27: 195998.8966 | M27: 1118455 | N27: 7804 | O27: 143.3181702 | P27: 0.3835963684 | Q27: 1690.372221 | R27: 0.2166033087 | S27: 80.92670425 | T27: 393.1570989 | U27: 1118455 | V27: 69.05 | W27: 16197.75525 | X27: 0.3835963684 | Y27: 14.95645847
A28: Michigan | B28: MI | C28: 181477785 | D28: 137477828 | E28: 495951664 | F28: 247099645 | G28: 786589807 | H28: 384577473 | I28: 0.1747770271 | J28: 0.3574775894 | K28: 94812295.17 | L28: 42665532.83 | M28: 341907755 | N28: 656546 | O28: 520.7674024 | P28: 0.8890477966 | Q28: 234700.4814 | R28: 0.3574775894 | S28: 209.3955762 | T28: 1198.072651 | U28: 314811868 | V28: 6201.91 | W28: 50760.47024 | X28: 0.8185915455 | Y28: 2217.043837
A29: Minnesota | B29: MN | C29: 64800453 | D29: 47792604 | E29: 123608133 | F29: 101608470 | G29: 242224452 | H29: 149401074 | I29: 0.1973070993 | J29: 0.3198946481 | K29: 32960416.55 | L29: 14832187.45 | M29: 99458417 | N29: 158043 | O29: 629.3123833 | P29: 0.6657142036 | Q29: 50557.10988 | R29: 0.3198946481 | S29: 302.402536 | T29: 1532.649039 | U29: 81003570 | V29: 1797.21 | W29: 45071.84469 | X29: 0.5421886726 | Y29: 574.9178606
A30: Missouri | B30: MO | C30: 179329000 | D30: 123291369 | E30: 473641890 | F30: 190607652 | G30: 718109223 | H30: 313899021 | I30: 0.1716888811 | J30: 0.3927739838 | K30: 85028530.34 | L30: 38262838.66 | M30: 250505690 | N30: 616605 | O30: 406.2660699 | P30: 0.7980454644 | Q30: 242186.4023 | R30: 0.3927739838 | S30: 199.9519449 | T30: 1164.617904 | U30: 206862586 | V30: 5605.59 | W30: 36902.91049 | X30: 0.6590099751 | Y30: 2201.729916
A31: Northern Mariana Islands | B31: MP | C31: 2612522 | D31: 2309217 | E31: 238899 | F31: 2318817 | G31: 2861021 | H31: 4628034 | I31: 0.8071303916 | J31: 0.4989628425 | K31: 1592563.448 | L31: 716653.5517 | M31: 2372599 | N31: 2445 | O31: 970.3881391 | P31: 0.5126580747 | Q31: 1219.96415 | R31: 0.4989628425 | S31: 944.4650307 | T31: 1170.151738 | U31: 1728447 | V31: 25.71 | W31: 67228.5881 | X31: 0.3734732718 | Y31: 12.82833468
A32: Mississippi | B32: MS | C32: 112575641 | D32: 81502126 | E32: 137827837 | F32: 107277533 | G32: 274641252 | H32: 188779659 | I32: 0.2967585001 | J32: 0.4317315034 | K32: 56208362.76 | L32: 25293763.24 | M32: 146404869 | N32: 311088 | O32: 470.6220394 | P32: 0.7755330727 | Q32: 134306.4899 | R32: 0.4317315034 | S32: 261.9905814 | T32: 882.8410353 | U32: 121616224 | V32: 2195.69 | W32: 55388.61315 | X32: 0.6442231363 | Y32: 947.9485448
A33: Montana | B33: MT | C33: 57334131 | D33: 45615708 | E33: 119664687 | F33: 74505378 | G33: 205876389 | H33: 120121086 | I33: 0.2215684286 | J33: 0.3797477156 | K33: 31459108.97 | L33: 14156599.03 | M33: 75688924 | N33: 118277 | O33: 639.9293523 | P33: 0.6301052257 | Q33: 44915.42055 | R33: 0.3797477156 | S33: 385.6684563 | T33: 1740.629108 | U33: 68301121 | V33: 1359.12 | W33: 50253.92975 | X33: 0.5686022602 | Y33: 516.1227152
A34: North Carolina | B34: NC | C34: 194681722 | D34: 146078891 | E34: 387803200 | F34: 255164708 | G34: 691051451 | H34: 401243599 | I34: 0.2113864182 | J34: 0.3640653492 | K34: 100744062.8 | L34: 45334828.24 | M34: 291409433 | N34: 721568 | O34: 403.8558154 | P34: 0.7262656245 | Q34: =(D34/O34)*P34 -> 262697.9059 | R34: =Q34/N34 -> 0.3640653492 | S34: =D34/N34 -> 202.4464652 | T34: =G34/N34 -> 957.7080067 | U34: 261718943 | V34: 5108.67 | W34: 51230.34821 | X34: =U34/H34 -> 0.6522694534 | Y34: 1859.889728
A35: North Dakota | B35: ND | C35: 16195302 | D35: 12475819 | E35: 29456991 | F35: 16372563 | G35: 49236408 | H35: 28848382 | I35: 0.2533860512 | J35: 0.4324616542 | K35: 8604013.103 | L35: 3871805.897 | M35: 20560648 | N35: 36030 | O35: 570.6535665 | P35: 0.7127140787 | Q35: 15581.5934 | R35: 0.4324616542 | S35: 346.2619761 | T35: 1366.539217 | U35: 18090496 | V35: 351.2 | W35: 51510.52392 | X35: 0.6270887567 | Y35: 151.8805329
A36: Nebraska | B36: NE | C36: 33808415 | D36: 22449826 | E36: 66328851 | F36: 51387482 | G36: 128141840 | H36: 73837308 | I36: 0.1751951275 | J36: 0.3040444811 | K36: 15482638.62 | L36: 6967187.379 | M36: 60975099 | N36: 113528 | O36: 537.0930431 | P36: 0.8258033865 | Q36: 34517.56186 | R36: 0.3040444811 | S36: 197.7470404 | T36: 1128.724544 | U36: 49466758 | V36: 1138.23 | W36: 43459.36937 | X36: 0.6699425987 | Y36: 346.0725498
A37: New Hampshire | B37: NH | C37: 32171286 | D37: 24431406 | E37: 69888880 | F37: 43756612 | G37: 121385372 | H37: 68188018 | I37: 0.2012714184 | J37: 0.358294708 | K37: 16849245.52 | L37: 7582160.483 | M37: 69033347 | N37: 89383 | O37: 772.3319535 | P37: 1.012397031 | Q37: 32025.45589 | R37: 0.358294708 | S37: 273.3339226 | T37: 1358.03645 | U37: 61582372 | V37: 1052.79 | W37: 58494.44999 | X37: 0.9031260008 | Y37: 377.2090857
A38: New Jersey | B38: NJ | C38: 134056042 | D38: 88747962 | E38: 266226948 | F38: 176457222 | G38: 487016853 | H38: 265205184 | I38: 0.1822277021 | J38: 0.3346388659 | K38: 61205491.03 | L38: 27542470.97 | M38: 173098866 | N38: 569142 | O38: 304.1400318 | P38: 0.6526978975 | Q38: 190457.0334 | R38: 0.3346388659 | S38: 155.932899 | T38: 855.7035907 | U38: 233765438 | V38: 3359.99 | W38: 69573.25409 | X38: 0.8814512389 | Y38: 1124.383243
A39: New Mexico | B39: NM | C39: 98694854 | D39: 76826217 | E39: 199562062 | F39: 152637318 | G39: 373917471 | H39: 229463535 | I39: 0.2054630312 | J39: 0.3348079554 | K39: 52983597.93 | L39: 23842619.07 | M39: 158972250 | N39: 315988 | O39: 503.0958454 | P39: 0.6927996206 | Q39: 105795.2962 | R39: 0.3348079554 | S39: 243.1301727 | T39: 1183.328073 | U39: 132252536 | V39: 3375.97 | W39: 39174.6775 | X39: 0.5763553499 | Y39: 1130.301613
A40: Nevada | B40: NV | C40: 37027890 | D40: 26611641 | E40: 90391682 | F40: 52405486 | G40: 153106287 | H40: 79017127 | I40: 0.1738115496 | J40: 0.3367832014 | K40: 18352855.86 | L40: 8258785.138 | M40: 61141839 | N40: 111945 | O40: 546.1774889 | P40: 0.7737795757 | Q40: 37701.19549 | R40: 0.3367832014 | S40: 237.7206753 | T40: 1367.692054 | U40: 48043641 | V40: 1115.27 | W40: 43078.03581 | X40: 0.6080155382 | Y40: 375.6042011
A41: New York | B41: NY | C41: 404610742 | D41: 273389168 | E41: 2201173576 | F41: 836909567 | G41: 3193028047 | H41: 1110298735 | I41: 0.08562065975 | J41: 0.2462302796 | K41: 188544253.8 | L41: 84844914.21 | M41: 1569344077 | N41: 2226970 | O41: 704.6992447 | P41: 1.413443092 | Q41: 548347.4458 | R41: 0.2462302796 | S41: 122.7628428 | T41: 1433.799309 | U41: 1456692983 | V41: 19740.59 | W41: 73791.76524 | X41: 1.311982926 | Y41: 4860.730996
A42: Ohio | B42: OH | C42: 236888423 | D42: 165354161 | E42: 565774304 | F42: 274154523 | G42: 910436796 | H42: 439508684 | I42: 0.1816206921 | J42: 0.3762250145 | K42: 114037352.4 | L42: =D42-(D42*$B$68) -> 51316808.59 | M42: 374426241 | N42: 850031 | O42: 440.4853952 | P42: 0.8519200067 | Q42: 319802.9253 | R42: 0.3762250145 | S42: 194.5272125 | T42: 1071.063051 | U42: 336159933 | V42: 7176.51 | W42: 46841.70063 | X42: 0.7648539045 | Y42: 2699.982579
A43: Oklahoma | B43: OK | C43: 94022266 | D43: 66058319 | E43: 203966913 | F43: 92662042 | G43: 323524123 | H43: 158720361 | I43: 0.2041835965 | J43: 0.4161930995 | K43: 45557461.38 | L43: 20500857.62 | M43: 166513219 | N43: 311306 | O43: 534.8859932 | P43: 1.049098036 | Q43: 129563.409 | R43: 0.4161930995 | S43: 212.1973846 | T43: 1039.247952 | U43: 143045708 | V43: 2446.38 | W43: 58472.39922 | X43: 0.9012435903 | Y43: 1018.166475
A44: Oregon | B44: OR | C44: 130321162 | D44: 99496629 | E44: 630373599 | F44: 232537180 | G44: 893116238 | H44: 332033809 | I44: 0.1114038966 | J44: 0.2996581261 | K44: 68618364.83 | L44: 30878264.17 | M44: 370570738 | N44: 376515 | O44: 984.2124165 | P44: 1.116063268 | Q44: 112825.7793 | R44: 0.2996581261 | S44: 264.2567467 | T44: 2372.060178 | U44: 307782475 | V44: 5731.54 | W44: 53699.78662 | X44: 0.9269612511 | Y44: 1717.502536
A45: Pennsylvania | B45: PA | C45: 196386466 | D45: 141039594 | E45: 616649640 | F45: 233130108 | G45: 922225151 | H45: 374169702 | I45: 0.1529340138 | J45: 0.3769401778 | K45: 97268685.52 | L45: 43770908.48 | M45: 356349564 | N45: 823746 | O45: 432.596412 | P45: 0.9523741823 | Q45: 310502.9637 | R45: 0.3769401778 | S45: 171.217334 | T45: 1119.550384 | U45: 364746010 | V45: 6413.01 | W45: 56875.94593 | X45: 0.9748143905 | Y45: 2417.32113
A46: Puerto Rico | B46: PR | C46: 129865437 | D46: 95470007 | E46: 327126770 | F46: 121743939 | G46: 480750148 | H46: 217213946 | I46: 0.1985854968 | J46: 0.4395206144 | K46: 65841384.14 | L46: 29628622.86 | M46: 242021112 | N46: 413219 | O46: 585.6969597 | P46: 1.114206138 | Q46: 181618.2688 | R46: 0.4395206144 | S46: 231.039732 | T46: 1163.427016 | U46: 190851017 | V46: 4545.59 | W46: 41985.97256 | X46: 0.8786315083 | Y46: 1997.88051
A47: Palau | B47: PW | C47: 1871002 | D47: 704526 | E47: 907597 | F47: 704526 | G47: 2778599 | H47: 1409052 | I47: 0.2535543992 | J47: 0.5 | K47: 485880 | L47: 218646 | M47: 2236136 | N47: 14576 | O47: 153.4121844 | P47: 1.586979047 | Q47: 7288 | R47: 0.5 | S47: 48.33465971 | T47: 190.6283617 | U47: 1707269 | V47: 119.98 | W47: 14229.61327 | X47: 1.211643715 | Y47: 59.99
A48: Rhode Island | B48: RI | C48: 39684147 | D48: 31558829 | E48: 208230807 | F48: 66397176 | G48: 282618507 | H48: 97956005 | I48: 0.1116658259 | J48: 0.3221735002 | K48: 21764709.66 | L48: 9794119.345 | M48: 147572179 | N48: 189496 | O48: 778.7614462 | P48: 1.506514879 | Q48: 61050.5896 | R48: 0.3221735002 | S48: 166.5408716 | T48: 1491.422019 | U48: 129457244 | V48: 2018.58 | W48: 64132.82803 | X48: 1.321585583 | Y48: 650.3329841
A49: South Carolina | B49: SC | C49: 125978603 | D49: 94599292 | E49: 436966512 | F49: 173305225 | G49: 637692393 | H49: 267904517 | I49: 0.1483462764 | J49: 0.3531082382 | K49: 65240891.03 | L49: 29358400.97 | M49: 295919453 | N49: 436831 | O49: 677.423198 | P49: 1.1045706 | Q49: 154248.6248 | R49: 0.3531082382 | S49: 216.5581014 | T49: 1459.814878 | U49: 242652872 | V49: 4367.75 | W49: 55555.57713 | X49: 0.9057438625 | Y49: 1542.288507
A50: South Dakota | B50: SD | C50: 24877040 | D50: 20866363 | E50: 56892065 | F50: 28439997 | G50: 89342739 | H50: 49306360 | I50: 0.2335541 | J50: 0.423198204 | K50: 14390595.17 | L50: 6475767.828 | M50: 58214301 | N50: 100692 | O50: 578.1422655 | P50: 1.180665152 | Q50: 42612.67356 | R50: 0.423198204 | S50: 207.2296012 | T50: 887.2873615 | U50: 51813938 | V50: 774.76 | W50: 66877.40462 | X50: 1.05085709 | Y50: 327.8770406
A51: Tennessee | B51: TN | C51: 128687566 | D51: 91350958 | E51: 200606692 | F51: 139447159 | G51: 377332422 | H51: 230798117 | I51: 0.2420967632 | J51: 0.395804607 | K51: 63000660.69 | L51: 28350297.31 | M51: 217760014 | N51: 437128 | O51: 498.1607538 | P51: 0.9435086249 | Q51: 173017.2763 | R51: 0.395804607 | S51: 208.9798823 | T51: 863.2080809 | U51: 172597475 | V51: 3291.1 | W51: 52443.70423 | X51: 0.7478287832 | Y51: 1302.632542
A52: Texas | B52: TX | C52: 407615395 | D52: 284671241 | E52: 1221037844 | F52: 562394227 | G52: 1905687621 | H52: 847065468 | I52: 0.1493798028 | J52: 0.3360675789 | K52: 196324993.8 | L52: 88346247.21 | M52: 976266251 | N52: 1735904 | O52: 562.3964522 | P52: 1.152527506 | Q52: 583381.0545 | R52: 0.3360675789 | S52: 163.9901982 | T52: 1097.807034 | U52: 792536541 | V52: 14319.67 | W52: 55346.00595 | X52: 0.9356260773 | Y52: 4812.376828
A53: Utah | B53: UT | C53: 58226122 | D53: 42064266 | E53: 99474011 | F53: 80935750 | G53: 196570567 | H53: 123000016 | I53: 0.2139906632 | J53: 0.341985858 | K53: 29009838.62 | L53: 13054427.38 | M53: 81841601 | N53: 163550 | O53: 500.407221 | P53: 0.6653787834 | Q53: 55931.78707 | R53: 0.341985858 | S53: 257.1951452 | T53: 1201.898912 | U53: 68114631 | V53: 1442.62 | W53: 47215.92034 | X53: 0.5537774158 | Y53: 493.3556384
A54: Virginia | B54: VA | C54: 128118038 | D54: 93409211 | E54: 236687386 | F54: 138814624 | G54: 408682403 | H54: 232223835 | I54: 0.228561862 | J54: 0.402237828 | K54: 64420145.52 | L54: 28989065.48 | M54: 210836275 | N54: 377727 | O54: 558.1710468 | P54: 0.907901099 | Q54: 151936.0881 | R54: 0.402237828 | S54: 247.2929153 | T54: 1081.951788 | U54: 177193334 | V54: 3577.52 | W54: 49529.65574 | X54: 0.7630281965 | Y54: 1439.013874
A55: Virgin Islands | B55: VI | C55: 5759509 | D55: 3271826 | E55: 10947803 | F55: 9724618 | G55: 22993304 | H55: 12996444 | I55: 0.1422947307 | J55: 0.2517477858 | K55: 2256431.724 | L55: 1015394.276 | M55: 19537270 | N55: 15930 | O55: 1226.445072 | P55: 1.503278127 | Q55: 4010.342227 | R55: 0.2517477858 | S55: 205.3876962 | T55: 1443.396359 | U55: 10334046 | V55: 229.42 | W55: 45044.22457 | X55: 0.7951441179 | Y55: 57.75597701
A56: Vermont | B56: VT | C56: 39313153 | D56: 25404664 | E56: 149829941 | F56: 55297688 | G56: 218969339 | H56: 80702352 | I56: 0.1160192752 | J56: 0.3147945924 | K56: 17520457.93 | L56: 7884206.069 | M56: 110951086 | N56: 184682 | O56: 600.7682719 | P56: 1.374818494 | Q56: 58136.89491 | R56: 0.3147945924 | S56: 137.5589608 | T56: 1185.656095 | U56: 103811710 | V56: 1613.85 | W56: 64325.50113 | X56: 1.286352968 | Y56: 508.0312529
A57: Washington | B57: WA | C57: 198895019 | D57: 138602346 | E57: 1461676401 | F57: 325897930 | G57: 1847832145 | H57: 464500276 | I57: 0.07500808251 | J57: 0.2983902339 | K57: 95587824.83 | L57: 43014521.17 | M57: 730693105 | N57: 1195483 | O57: 611.2116233 | P57: 1.573073565 | Q57: 356720.452 | R57: 0.2983902339 | S57: 115.9383663 | T57: 1545.678312 | U57: 607329128 | V57: 11708.78 | W57: 51869.54815 | X57: 1.307489273 | Y57: 3493.785603
A58: Wisconsin | B58: WI | C58: 82528579 | D58: 49105300 | E58: 204659795 | F58: 112134778 | G58: 350217852 | H58: 161240078 | I58: 0.1402135834 | J58: 0.3045477316 | K58: 33865724.14 | L58: 15239575.86 | M58: 98222024 | N58: 273226 | O58: 359.4900339 | P58: 0.6091663141 | Q58: 83210.35852 | R58: 0.3045477316 | S58: 179.7241112 | T58: 1281.788161 | U58: 87760547 | V58: 2641.03 | W58: 33229.66683 | X58: 0.5442849451 | Y58: 804.3196956
A59: West Virginia | B59: WV | C59: 108622260 | D59: 80104446 | E59: 362983419 | F59: 130865789 | G59: 521899868 | H59: 210970235 | I59: 0.1534862354 | J59: 0.3796954864 | K59: 55244445.52 | L59: 24860000.48 | M59: 277233275 | N59: 504163 | O59: 549.888181 | P59: 1.314087151 | Q59: 191428.4155 | R59: 0.3796954864 | S59: 158.8860071 | T59: 1035.18082 | U59: 239369940 | V59: 3958.31 | W59: 60472.76237 | X59: 1.134614748 | Y59: 1502.952441
A60: Wyoming | B60: WY | C60: 13028312 | D60: 8643254 | E60: 25595110 | F60: 19102485 | G60: 49082653 | H60: 27745739 | I60: 0.1760959009 | J60: 0.3115164458 | K60: 5960864.828 | L60: 2682389.172 | M60: 28687301 | N60: 34740 | O60: 825.7714738 | P60: 1.033935373 | Q60: 10822.08133 | R60: 0.3115164458 | S60: 248.7983305 | T60: 1412.857024 | U60: 23961688 | V60: 307.11 | W60: 78023.1448 | X60: 0.8636168602 | Y60: 95.66981568
A61: United States | B61: US | C61: =SUM(C1:C60) -> 7424904883 | D61: =SUM(D1:D60) -> 5181329158 | E61: =SUM(E1:E60) -> 25345338569 | F61: 11261447705 | G61: 38827557009 | H61: 16442776863 | I61: 0.1334446346 | J61: 0.3151127818 | K61: 3573330454 | L61: 1607998704 | M61: =SUM(M2:M60) -> 18430833187 | N61: =SUM(N2:N60) -> 30193278 | O61: 610.4283605 | P61: 1.120907578 | Q61: 9514287.823 | R61: 0.3151127818 | S61: 171.6053871 | T61: 1285.96693 | U61: =SUM(U2:U60) -> 15867275832 | V61: =SUM(V2:V60) -> 271781.14 | W61: 58382.5494 | X61: 0.9649997664 | Y61: 85641.71107
B63: Total | C63: =SUM(C2:C60) -> 7424904883 | E63: =SUM(E2:E60) -> 25345338569 | F63: =SUM(F2:F60) -> 11261447705 | G63: =SUM(G2:G60) -> 38827557009 | H63: =SUM(H2:H60) -> 16442776863 | K63: =SUM(K2:K60) -> 3573330454 | L63: =SUM(L2:L61) -> 3215997408 | N63: 30193278 | Q63: =SUM(Q2:Q60) -> 9706095.579 | S63: =SUM(S2:S61) -> 13295.14351 | T63: =SUM(T2:T61) -> 75538.35254 | Y63: =SUM(Y2:Y60) -> 85625.58338
B64: Total check | L64: =SUM(K63:L63) -> 6789327862 | S64: =C63/N63 -> 245.9125135
L65: =C63-K63 -> 3851574429
C66: 5.7 B | D66: =1.74/5.64 -> 0.3085106383
D67: =1-D66 -> 0.6914893617 | L67: =C63-K63-L63 -> 635577020.8
A68: CHCF as a % of 330 | B68: =4/5.8 -> 0.6896551724 | D68: =D67*D61 -> 3582833992

Sheet 2021 Output (hidden)
A1: HealthCenterState | B1: Total Patients | C1: Total FTE | D1: Patient Revenue | E1: Other Revenue | F1: Total Revenue | G1: BHPC Funding | H1: Medical Cost | I1: Medical FTE Cost | J1: CHC ONLY T9EL1BCA
A2: AK | B2: 114987 | C2: 2625.74 | D2: 203966933 | E2: 277760642 | F2: 481727575 | G2: 90661610 | H2: 204035120 | I2: 163042391 | J2: 70559486
A3: AL | B3: 312405 | C3: 2370.22 | D3: 144072531 | E3: 152280100 | F3: 296352631 | G3: 119973997 | H3: 179879413 | I3: 146616081 | J3: 75580003
A4: AR | B4: 285888 | C4: 2262.97 | D4: 181978298 | E4: 93040636 | F4: 275018934 | G4: 76087640 | H4: 173830701 | I4: 145062893 | J4: 56866636
A5: AS | B5: 11117 | C5: 107.5 | D5: 7242057 | E5: 12027190 | F5: 19269247 | G5: 4088614 | H5: 4470186 | I5: 2859296 | J5: 3878178
A6: AZ | B6: 800024 | C6: 7878.9 | D6: 732224162 | E6: 237353093 | F6: 969577255 | G6: 145580240 | H6: 519688120 | I6: 444308318 | J6: 75078974
A7: CA | B7: 5239583 | C7: 50973.8 | D7: 5726129837 | E7: 2603607639 | F7: 8329737476 | G7: 1135286122 | H7: 4259252119 | I7: 3526056894 | J7: 475573026
A8: CO | B8: 634878 | C8: 6036.42 | D8: 466704315 | E8: 298445937 | F8: 765150252 | G8: 146194880 | H8: 409734599 | I8: 356183067 | J8: 90199159
A9: CT | B9: 409362 | C9: 4543.09 | D9: 432691841 | E9: 178743224 | F9: 611435065 | G9: 88985726 | H9: 266795724 | I9: 251701547 | J9: 52731763
A10: DC | B10: 190987 | C10: 2249.97 | D10: 281051364 | E10: 94086310 | F10: 375137674 | G10: 37367206 | H10: 161584462 | I10: 133367744 | J10: 21290659
A11: DE | B11: 46592 | C11: 396.74 | D11: 26957257 | E11: 19860759 | F11: 46818016 | G11: 14874584 | H11: 17371151 | I11: 22958304 | J11: 12843802
A12: FL | B12: 1676685 | C12: 11931.87 | D12: 1009700019 | E12: 650771984 | F12: 1660472003 | G12: 392616463 | H12: 722823685 | I12: 609263067 | J12: 186775341
A13: FM | B13: 21288 | C13: 131.61 | D13: 129515 | E13: 5814342 | F13: 5943857 | G13: 5783400 | H13: 3823010 | I13: 2399753 | J13: 3269239
A14: GA | B14: 662164 | C14: 3959.94 | D14: 343973249 | E14: 230230094 | F14: 574203343 | G14: 184086708 | H14: 295437009 | I14: 240497023 | J14: 111335115
A15: GU | B15: 8012 | C15: 78.91 | D15: 2610419 | E15: 4338058 | F15: 6948477 | G15: 2993481 | H15: 5115627 | I15: 4252897 | J15: 1998168
A16: HI | B16: 154284 | C16: 2072.72 | D16: 173948430 | E16: 94980255 | F16: 268928685 | G16: 46604628 | H16: 129434518 | I16: 105904374 | J16: 32641051
A17: IA | B17: 252926 | C17: 2094.01 | D17: 175109088 | E17: 88273649 | F17: 263382737 | G17: 59133085 | H17: 122945926 | I17: 102199800 | J17: 43739944
A18: ID | B18: 202675 | C18: 2233.74 | D18: 211822502 | E18: 141119401 | F18: 352941903 | G18: 72793166 | H18: 152138350 | I18: 121555704 | J18: 35842856
A19: IL | B19: 1448136 | C19: 10190.59 | D19: 947540224 | E19: 506952642 | F19: 1454492866 | G19: 301829538 | H19: 802226921 | I19: 674307190 | J19: 198315976
A20: IN | B20: 561200 | C20: 4529.81 | D20: 383440979 | E20: 174115297 | F20: 557556276 | G20: 116637632 | H20: 323804634 | I20: 271389119 | J20: 70074013
A21: KS | B21: 288440 | C21: 2290.79 | D21: 177284938 | E21: 124533206 | F21: 301818144 | G21: 71981196 | H21: 131599618 | I21: 106810171 | J21: 44627169
A22: KY | B22: 593784 | C22: 4386.05 | D22: 436565564 | E22: 155106604 | F22: 591672168 | G22: 121782080 | H22: 317799563 | I22: 278735437 | J22: 70738522
A23: LA | B23: 460418 | C23: 3982.53 | D23: 334991463 | E23: 202444932 | F23: 537436395 | G23: 147587503 | H23: 217462824 | I23: 196849191 | J23: 97819814
A24: MA | B24: 788456 | C24: 10060.79 | D24: 756638957 | E24: 698741422 | F24: 1455380379 | G24: 189206346 | H24: 567771381 | I24: 531004370 | J24: 124208902
A25: MD | B25: 338877 | C25: 3123.12 | D25: 339703492 | E25: 169652943 | F25: 509356435 | G25: 88268225 | H25: 214331433 | I25: 202340050 | J25: 59070005
A26: ME | B26: 195803 | C26: 2088.81 | D26: 166678390 | E26: 96228825 | F26: 262907215 | G26: 63051771 | H26: 139633680 | I26: 119330207 | J26: 42109475
A27: MH | B27: 7804 | C27: 69.05 | D27: 30836 | E27: 3037362 | F27: 3068198 | G27: 1384758 | H27: 1118455 | I27: 1118455 | J27: 631552
A28: MI | B28: 656546 | C28: 6201.91 | D28: 495951664 | E28: 290638143 | F28: 786589807 | G28: 181477785 | H28: 341907755 | I28: 314811868 | J28: 111026269
A29: MN | B29: 158043 | C29: 1797.21 | D29: 123608133 | E29: 118616319 | F29: 242224452 | G29: 64800453 | H29: 99458417 | I29: 81003570 | J29: 39056000
A30: MO | B30: 616605 | C30: 5605.59 | D30: 473641890 | E30: 244467333 | F30: 718109223 | G30: 179329000 | H30: 250505690 | I30: 206862586 | J30: 113832067
A31: MP | B31: 2445 | C31: 25.71 | D31: 238899 | E31: 2622122 | F31: 2861021 | G31: 2612522 | H31: 2372599 | I31: 1728447 | J31: 2309217
A32: MS | B32: 311088 | C32: 2195.69 | D32: 137827837 | E32: 136813415 | F32: 274641252 | G32: 112575641 | H32: 146404869 | I32: 121616224 | J32: 79128480
A33: MT | B33: 118277 | C33: 1359.12 | D33: 119664687 | E33: 86211702 | F33: 205876389 | G33: 57334131 | H33: 75688924 | I33: 68301121 | J33: 39750250
A34: NC | B34: 721568 | C34: 5108.67 | D34: 387803200 | E34: 303248251 | F34: 691051451 | G34: 194681722 | H34: 291409433 | I34: 261718943 | J34: 107604162
A35: ND | B35: 36030 | C35: 351.2 | D35: 29456991 | E35: 19779417 | F35: 49236408 | G35: 16195302 | H35: 20560648 | I35: 18090496 | J35: 11851338
A36: NE | B36: 113528 | C36: 1138.23 | D36: 66328851 | E36: 61812989 | F36: 128141840 | G36: 33808415 | H36: 60975099 | I36: 49466758 | J36: 19253672
A37: NH | B37: 89383 | C37: 1052.79 | D37: 69888880 | E37: 51496492 | F37: 121385372 | G37: 32171286 | H37: 69033347 | I37: 61582372 | J37: 19340603
A38: NJ | B38: 569142 | C38: 3359.99 | D38: 266226948 | E38: 220789905 | F38: 487016853 | G38: 134056042 | H38: 173098866 | I38: 233765438 | J38: 67835343
A39: NM | B39: 315988 | C39: 3375.97 | D39: 199562062 | E39: 174355409 | F39: 373917471 | G39: 98694854 | H39: 158972250 | I39: 132252536 | J39: 63729993
A40: NV | B40: 111945 | C40: 1115.27 | D40: 90391682 | E40: 62714605 | F40: 153106287 | G40: 37027890 | H40: 61141839 | I40: 48043641 | J40: 24386149
A41: NY | B41: 2226970 | C41: 19740.59 | D41: 2201173576 | E41: 991854471 | F41: 3193028047 | G41: 404610742 | H41: 1569344077 | I41: 1456692983 | J41: 214139544
A42: OH | B42: 850031 | C42: 7176.51 | D42: 565774304 | E42: 344662492 | F42: 910436796 | G42: 236888423 | H42: 374426241 | I42: 336159933 | J42: 140665413
A43: OK | B43: 311306 | C43: 2446.38 | D43: 203966913 | E43: 119557210 | F43: 323524123 | G43: 94022266 | H43: 166513219 | I43: 143045708 | J43: 64447054
A44: OR | B44: 376515 | C44: 5731.54 | D44: 630373599 | E44: 262742639 | F44: 893116238 | G44: 130321162 | H44: 370570738 | I44: 307782475 | J44: 72698228
A45: PA | B45: 823746 | C45: 6413.01 | D45: 616649640 | E45: 305575511 | F45: 922225151 | G45: 196386466 | H45: 356349564 | I45: 364746010 | J45: 120048410
A46: PR | B46: 413219 | C46: 4545.59 | D46: 327126770 | E46: 153623378 | F46: 480750148 | G46: 129865437 | H46: 242021112 | I46: 190851017 | J46: 72829502
A47: PW | B47: 14576 | C47: 119.98 | D47: 907597 | E47: 1871002 | F47: 2778599 | G47: 1871002 | H47: 2236136 | I47: 1707269 | J47: 704526
A48: RI | B48: 189496 | C48: 2018.58 | D48: 208230807 | E48: 74387700 | F48: 282618507 | G48: 39684147 | H48: 147572179 | I48: 129457244 | J48: 30306344
A49: SC | B49: 436831 | C49: 4367.75 | D49: 436966512 | E49: 203444470 | F49: 637692393 | G49: 125978603 | H49: 295919453 | I49: 242652872 | J49: 86734348
A50: SD | B50: 100692 | C50: 774.76 | D50: 56892065 | E50: 32450674 | F50: 89342739 | G50: 24877040 | H50: 58214301 | I50: 51813938 | J50: 19782410
A51: TN | B51: 437128 | C51: 3291.1 | D51: 200606692 | E51: 176725730 | F51: 377332422 | G51: 128687566 | H51: 217760014 | I51: 172597475 | J51: 79195583
A52: TX | B52: 1735904 | C52: 14319.67 | D52: 1221037844 | E52: 684649777 | F52: 1905687621 | G52: 407615395 | H52: 976266251 | I52: 792536541 | J52: 250379188
A53: UT | B53: 163550 | C53: 1442.62 | D53: 99474011 | E53: 97096556 | F53: 196570567 | G53: 58226122 | H53: 81841601 | I53: 68114631 | J53: 36031932
A54: VA | B54: 377727 | C54: 3577.52 | D54: 236687386 | E54: 171995017 | F54: 408682403 | G54: 128118038 | H54: 210836275 | I54: 177193334 | J54: 85924756
A55: VI | B55: 15930 | C55: 229.42 | D55: 10947803 | E55: 12045501 | F55: 22993304 | G55: 5759509 | H55: 19537270 | I55: 10334046 | J55: 3271826
A56: VT | B56: 184682 | C56: 1613.85 | D56: 149829941 | E56: 69139398 | F56: 218969339 | G56: 39313153 | H56: 110951086 | I56: 103811710 | J56: 24020750
A57: WA | B57: 1195483 | C57: 11708.78 | D57: 1461676401 | E57: 386155744 | F57: 1847832145 | G57: 198895019 | H57: 730693105 | I57: 607329128 | J57: 82566377
A58: WI | B58: 273226 | C58: 2641.03 | D58: 204659795 | E58: 145558057 | F58: 350217852 | G58: 82528579 | H58: 98222024 | I58: 87760547 | J58: 43890777
A59: WV | B59: 504163 | C59: 3958.31 | D59: 362983419 | E59: 158916449 | F59: 521899868 | G59: 108622260 | H59: 277233275 | I59: 239369940 | J59: 78365831
A60: WY | B60: 34740 | C60: 307.11 | D60: 25595110 | E60: 23487543 | F60: 49082653 | G60: 13028312 | H60: 28687301 | I60: 23961688 | J60: 7034389
B62: =SUM(B2:B61) -> 30193278 | G62: =SUM(G2:G61) -> 7424904883 | J62: =SUM(J2:J61) -> 4269939559
